bitfinex/quotes_BTCUSD_20251102
["timestamp","ask_amount","ask_price","bid_price","bid_amount"]
[1762050788131,0.0021234,110250.0,110240.0,1.21255437]
[1762050789175,0.0021234,110250.0,110240.0,1.06275437]
[1762050789440,0.0021234,110250.0,110240.0,1.06375437]
[1762050790015,0.0021234,110250.0,110240.0,0.62094885]
[1762050796644,0.0021234,110250.0,110240.0,1.01258101]
[1762050798480,0.0021234,110250.0,110240.0,0.62094885]
[1762050801002,0.0021234,110250.0,110240.0,0.76974885]
[1762050803498,0.0021234,110250.0,110240.0,1.16138101]
[1762050804526,0.0021234,110250.0,110240.0,0.76974885]
[1762050804925,0.0021234,110250.0,110240.0,1.16138101]
[1762050805370,0.0021234,110250.0,110240.0,1.11273451]
[1762050806510,0.0021234,110250.0,110240.0,0.72110235]
[1762050806672,0.0021234,110250.0,110240.0,1.11273451]
[1762050808452,0.0021234,110250.0,110240.0,1.17810399]
[1762050809024,0.0021234,110250.0,110240.0,0.78647183]
[1762050809425,0.0021234,110250.0,110240.0,1.17810399]
[1762050809631,0.0021234,110250.0,110240.0,0.76347183]
[1762050809831,0.0177534,110250.0,110240.0,0.76347183]
[1762050810035,0.0177534,110250.0,110240.0,0.76247183]
[1762050810563,0.0021234,110250.0,110240.0,0.76247183]
[1762050811229,0.0021234,110250.0,110240.0,0.78561183]
[1762050811778,0.0021234,110250.0,110240.0,0.78661183]
[1762050812743,0.0021234,110250.0,110240.0,0.63781183]
[1762050816818,0.00156688,110250.0,110240.0,0.63781183]
[1762050817581,0.00156688,110250.0,110240.0,0.57244235]
[1762050818222,0.00156688,110250.0,110240.0,0.63781183]
[1762050818858,0.00156688,110250.0,110240.0,0.70458868]
[1762050819780,0.00156688,110250.0,110240.0,1.24510483]
[1762050819991,0.00156688,110250.0,110240.0,1.25510482]
[1762050820828,0.00056688,110250.0,110240.0,1.25310482]
[1762050821215,0.00056688,110250.0,110240.0,1.25510482]
[1762050822244,0.00056688,110250.0,110240.0,1.26210482]
[1762050823044,0.00056688,110250.0,110240.0,1.27118081]
[1762050823741,0.00056688,110250.0,110240.0,1.26210482]
[1762050825743,0.00056688,110250.0,110240.0,1.26573906]
[1762050831586,0.00056688,110250.0,110240.0,0.87402291]
[1762050831781,0.00056688,110250.0,110240.0,1.26573906]
[1762050842241,0.0002,110260.0,110250.0,0.52140589]
[1762050842449,0.0002,110260.0,110250.0,1.75021277]
[1762050842644,0.00042058,110260.0,110250.0,1.75021277]
[1762050843021,0.00042058,110260.0,110250.0,1.3621306]
[1762050843222,0.00042058,110260.0,110250.0,0.97041445]
[1762050843458,0.00042058,110260.0,110250.0,1.3661306]
[1762050844247,0.00042058,110260.0,110250.0,1.3671306]
[1762050847852,0.00042058,110260.0,110250.0,0.97541445]
[1762050848054,0.00042058,110260.0,110250.0,1.3671306]
[1762050848677,0.00042058,110260.0,110250.0,0.88559544]
[1762050848884,0.00042058,110260.0,110250.0,0.87559545]
[1762050849660,0.00042058,110260.0,110250.0,0.87459545]
[1762050849835,0.00042058,110260.0,110250.0,0.87559545]
[1762050850068,0.00042058,110260.0,110250.0,1.2673116]
[1762050850301,0.00042058,110260.0,110250.0,1.35713061]
[1762050851698,0.00042058,110260.0,110250.0,1.35349663]
[1762050852143,0.00042058,110260.0,110250.0,0.96178048]
[1762050852360,0.00042058,110260.0,110250.0,1.35349663]
[1762050860652,0.00042058,110260.0,110250.0,0.96178048]
[1762050860850,0.00042058,110260.0,110250.0,1.35349663]
[1762050863582,0.00042058,110260.0,110250.0,1.26367762]
[1762050865171,0.00042058,110260.0,110250.0,1.27367761]
[1762050868738,0.00042058,110260.0,110250.0,1.20849566]
[1762050869955,0.0002,110270.0,110260.0,0.53238943]
[1762050870163,1e-08,110270.0,110260.0,1.03599064]
[1762050870375,0.00383319,110310.0,110280.0,0.02522782]
[1762050870595,0.0002,110320.0,110310.0,0.53230721]
[1762050870803,0.0002,110320.0,110310.0,1.36245951]
[1762050871005,0.0002,110320.0,110310.0,1.05246166]
[1762050871220,0.0002,110320.0,110310.0,1.59886921]
[1762050871435,0.0002,110320.0,110310.0,1.58056953]
[1762050871709,0.0002,110350.0,110340.0,0.18225793]
[1762050871889,0.0002,110350.0,110340.0,1.50014486]
[1762050872105,0.0002,110350.0,110340.0,1.53803964]
[1762050872333,0.0002,110350.0,110340.0,1.21617397]
[1762050872570,0.0002,110350.0,110340.0,1.16389898]
[1762050872994,0.0002,110350.0,110340.0,1.21442181]
[1762050873216,0.0002,110350.0,110340.0,1.24472008]
[1762050873571,0.0002,110350.0,110340.0,1.24772008]
[1762050874212,0.0002,110350.0,110340.0,1.19919725]
[1762050874473,0.0002,110350.0,110340.0,1.20519725]
[1762050875107,0.0002,110350.0,110340.0,1.25372008]
[1762050875328,0.0002,110350.0,110340.0,1.5959134]
[1762050875587,0.0002,110350.0,110340.0,1.5949716]
[1762050875807,0.0002,110350.0,110340.0,2.02089913]
[1762050876011,0.00218352,110350.0,110340.0,2.07042196]
[1762050876216,0.00218352,110350.0,110340.0,1.63115388]
[1762050877339,0.00218352,110350.0,110340.0,1.59885561]
[1762050880159,0.00218352,110350.0,110340.0,1.56267333]
[1762050881273,0.00218352,110350.0,110340.0,0.78118283]
[1762050881476,0.00218352,110350.0,110340.0,1.56267333]
[1762050882881,0.00218352,110350.0,110340.0,1.71147333]
[1762050883084,0.00218352,110350.0,110340.0,1.56267333]
[1762050883318,0.00218352,110350.0,110340.0,0.78118283]
[1762050883520,0.00218352,110350.0,110340.0,1.56267333]
[1762050884953,0.00218352,110350.0,110340.0,0.78118283]
[1762050885168,0.00218352,110350.0,110340.0,1.56267333]
[1762050885775,0.00218352,110350.0,110340.0,1.55009333]
[1762050886288,1e-08,110350.0,110340.0,1.97702086]
[1762050886494,1e-08,110350.0,110340.0,2.01931912]
[1762050886704,1e-08,110350.0,110340.0,2.16041912]
[1762050886933,1e-08,110370.0,110360.0,1.76680309]
[1762050887137,1e-08,110370.0,110360.0,1.8640421]
[1762050887344,1e-08,110370.0,110360.0,1.8871821]
[1762050887553,1e-08,110370.0,110360.0,1.49643685]
[1762050887961,1e-08,110370.0,110360.0,1.58924275]
[1762050888175,0.00048277,110370.0,110360.0,1.979988]
[1762050888374,0.00048277,110370.0,110360.0,1.977988]
[1762050888580,0.00048277,110370.0,110360.0,1.981988]
[1762050888794,0.00048277,110370.0,110360.0,2.0485269]
[1762050889008,0.00048277,110370.0,110360.0,2.03852691]
[1762050889215,0.0002,110380.0,110370.0,1.31369915]
[1762050889415,0.00024824,110380.0,110370.0,1.45111816]
[1762050889825,1e-08,110380.0,110370.0,1.48730044]
[1762050890034,1e-08,110380.0,110370.0,1.88804568]
[1762050890611,1e-08,110380.0,110370.0,1.88904568]
[1762050890893,1e-08,110380.0,110370.0,1.49730043]
[1762050891108,1e-08,110380.0,110370.0,1.09755519]
[1762050891306,1e-08,110380.0,110370.0,1.11755518]
[1762050891755,1e-08,110380.0,110370.0,1.50630043]
[1762050892085,1e-08,110380.0,110370.0,1.51130043]
[1762050892315,1e-08,110380.0,110370.0,1.50130044]
[1762050892514,1e-08,110380.0,110370.0,1.51130043]
[1762050892963,1e-08,110380.0,110370.0,1.51030043]
[1762050893115,1e-08,110380.0,110370.0,1.51130043]
[1762050893856,1e-08,110380.0,110370.0,1.56593043]
[1762050894162,1e-08,110380.0,110370.0,1.51130043]
[1762050894366,1e-08,110380.0,110370.0,1.93434395]
[1762050894980,1e-08,110380.0,110370.0,1.5435987]
[1762050895368,1e-08,110380.0,110370.0,1.60299622]
[1762050895638,1e-08,110380.0,110370.0,1.65151905]
[1762050895996,1e-08,110380.0,110370.0,1.67858633]
[1762050896194,1e-08,110380.0,110370.0,1.64628806]
[1762050896397,1e-08,110380.0,110370.0,1.61922078]
[1762050896606,1e-08,110380.0,110370.0,1.71494078]
[1762050897437,1e-08,110380.0,110370.0,1.51451569]
[1762050897638,1e-08,110380.0,110370.0,0.37476478]
[1762050898009,0.00066074,110380.0,110370.0,0.71576478]
[1762050898487,0.00066074,110380.0,110370.0,0.70176478]
[1762050898690,0.00066074,110380.0,110370.0,0.66962766]
[1762050898893,0.00066074,110380.0,110370.0,0.67062766]
[1762050899319,0.00066074,110380.0,110370.0,0.70276478]
[1762050899989,0.00066074,110380.0,110370.0,0.66062767]
[1762050900215,0.00066074,110380.0,110370.0,0.32062767]
[1762050900877,0.00066074,110380.0,110370.0,0.66062767]
[1762050901099,0.00066074,110380.0,110370.0,0.001]
[1762050901100,0.664621,110380.0,110370.0,0.001]
[1762050901822,0.664621,110380.0,110370.0,0.18220866]
[1762050902076,0.22093298,110380.0,110360.0,0.2794508]
[1762050902299,0.01784001,110380.0,110370.0,0.19646866]
[1762050902518,0.01784001,110380.0,110370.0,0.24647461]
[1762050902743,0.01584001,110380.0,110370.0,0.24647461]
[1762050903187,0.02784001,110380.0,110370.0,0.24647461]
[1762050903430,0.47152803,110380.0,110370.0,0.24647461]
[1762050903834,0.49476803,110380.0,110370.0,0.24647461]
[1762050904047,0.67596027,110380.0,110370.0,0.24647461]
[1762050904268,0.67596027,110380.0,110370.0,0.05000595]
[1762050904933,0.49476803,110380.0,110370.0,0.23121461]
[1762050905350,0.47152803,110380.0,110370.0,0.24647461]
[1762050906088,0.02784001,110380.0,110370.0,0.24647461]
[1762050907189,0.05108001,110380.0,110370.0,0.23121461]
[1762050907409,0.23227225,110380.0,110370.0,0.23121461]
[1762050907623,0.05108001,110380.0,110370.0,0.23121461]
[1762050908490,0.06298001,110380.0,110370.0,0.23121461]
[1762050909728,0.03974001,110380.0,110370.0,0.24647461]
[1762050910688,0.06298001,110380.0,110370.0,0.24647461]
[1762050910889,0.06298001,110380.0,110370.0,0.23121461]
[1762050911117,0.24417225,110380.0,110370.0,0.23121461]
[1762050911291,0.06298001,110380.0,110370.0,0.23121461]
[1762050912639,0.24417225,110380.0,110370.0,0.23121461]
[1762050912850,0.24483298,110380.0,110370.0,0.05000595]
[1762050913056,0.688521,110380.0,110370.0,0.05000595]
[1762050913478,0.50732876,110380.0,110370.0,0.23121461]
[1762050913773,0.688521,110380.0,110370.0,0.23121461]
[1762050914700,0.50732876,110380.0,110370.0,0.23121461]
[1762050916520,0.688521,110380.0,110370.0,0.23121461]
[1762050916739,0.688521,110380.0,110370.0,0.05000595]
[1762050918912,0.688521,110380.0,110360.0,0.61945092]
[1762050918913,0.18120866,110370.0,110360.0,0.61945092]
[1762050919117,0.23218866,110370.0,110360.0,0.4382259]
[1762050919344,0.1812415,110350.0,110340.0,0.22018203]
[1762050919551,0.60007317,110350.0,110340.0,0.0982259]
[1762050919766,0.62331317,110350.0,110340.0,0.0982259]
[1762050920200,0.62331317,110350.0,110340.0,0.29474383]
[1762050920201,0.44207167,110350.0,110340.0,0.29474383]
[1762050920408,0.41883167,110350.0,110340.0,0.29474383]
[1762050921340,0.02974,110350.0,110340.0,0.29474383]
[1762050921760,0.02774,110350.0,110340.0,0.29474383]
[1762050922614,0.03374,110350.0,110340.0,0.29474383]
[1762050923463,0.05845,110350.0,110340.0,0.29474383]
[1762050923886,0.03374,110350.0,110340.0,0.29474383]
[1762050924109,0.03374,110350.0,110340.0,0.35444997]
[1762050924110,0.006,110350.0,110340.0,0.35444997]
[1762050928214,0.006,110350.0,110340.0,0.38658709]
[1762050928666,0.03361,110350.0,110340.0,0.36344709]
[1762050929515,0.006,110350.0,110340.0,0.38598709]
[1762050931178,0.006,110350.0,110340.0,0.36344709]
[1762050933046,0.02116,110350.0,110340.0,0.36344709]
[1762050934889,0.006,110350.0,110340.0,0.38598709]
[1762050935546,0.006,110350.0,110340.0,0.36344709]
[1762050936857,0.006,110350.0,110340.0,0.38598709]
[1762050938914,0.006,110350.0,110340.0,0.36344709]
[1762050941142,0.02116,110350.0,110340.0,0.36344709]
[1762050941584,0.03361,110350.0,110340.0,0.36344709]
[1762050941795,0.05739,110350.0,110340.0,0.32688095]
[1762050944164,0.05739,110350.0,110340.0,0.37507535]
[1762050944998,0.44841182,110350.0,110340.0,0.37507535]
[1762050945431,0.44841182,110350.0,110340.0,0.32688095]
[1762050946302,0.44841182,110350.0,110340.0,0.37507535]
[1762050946758,0.44841182,110350.0,110340.0,0.4487743]
[1762050947179,0.44841182,110350.0,110340.0,0.37507535]
[1762050948300,0.62965332,110350.0,110340.0,0.37507535]
[1762050948727,0.62965332,110350.0,110340.0,0.35981535]
[1762050949153,0.62965332,110350.0,110340.0,0.32767823]
[1762050949587,0.62965332,110350.0,110340.0,0.1390003]
[1762050949798,0.62965332,110350.0,110340.0,0.1715799]
[1762050952571,0.62965332,110350.0,110340.0,0.1233855]
[1762050955149,0.62965332,110350.0,110340.0,0.30464343]
[1762050955990,0.62965332,110350.0,110340.0,0.1233855]
[1762050956397,0.62965332,110350.0,110340.0,0.30464343]
[1762050956785,0.44841182,110350.0,110340.0,0.35888463]
[1762050956984,0.2386315,110350.0,110340.0,0.35888463]
[1762050957193,0.62965332,110350.0,110340.0,0.35888463]
[1762050957780,0.62965332,110350.0,110340.0,0.30464343]
[1762050958607,0.44841182,110350.0,110340.0,0.30464343]
[1762050959045,0.62965332,110350.0,110340.0,0.30464343]
[1762050962129,0.62965332,110350.0,110340.0,0.1233855]
[1762050963801,0.62965332,110350.0,110340.0,0.27206383]
[1762050964466,0.62965332,110350.0,110340.0,0.0908059]
[1762050964728,0.18125793,110340.0,110330.0,0.080774]
[1762050964939,1.01355157,110340.0,110330.0,0.18127435]
[1762050965153,1.01355157,110340.0,110320.0,0.35391294]
[1762050965362,0.44127182,110330.0,110320.0,0.35391294]
[1762050965594,0.62254617,110330.0,110320.0,0.35391294]
[1762050966008,0.62254617,110330.0,110320.0,0.35405833]
[1762050966225,0.62254617,110330.0,110320.0,0.30586393]
[1762050966617,0.62254617,110330.0,110320.0,0.12457314]
[1762050966802,0.62254617,110330.0,110320.0,0.30586393]
[1762050967995,0.62254617,110330.0,110320.0,0.31086393]
[1762050968433,0.62254617,110330.0,110320.0,0.12957314]
[1762050969327,0.62254617,110330.0,110320.0,0.09699354]
[1762050969746,0.23152435,110330.0,110320.0,0.09699354]
[1762050969961,0.62254617,110330.0,110320.0,0.09699354]
[1762050975189,0.44127182,110330.0,110320.0,0.27828433]
[1762050975602,0.62254617,110330.0,110320.0,0.27828433]
[1762050976438,0.62254617,110330.0,110320.0,0.09699354]
[1762050977881,0.62254617,110330.0,110320.0,0.27828433]
[1762050979275,0.62254617,110330.0,110320.0,0.09699354]
[1762050980511,0.62254617,110330.0,110320.0,0.27828433]
[1762050980736,0.44127182,110330.0,110320.0,0.27828433]
[1762050980945,0.62254617,110330.0,110320.0,0.27828433]
[1762050983381,0.62254617,110330.0,110320.0,0.31086393]
[1762050987582,0.44127182,110330.0,110320.0,0.31086393]
[1762050988038,0.62254617,110330.0,110320.0,0.31086393]
[1762050988259,0.44127182,110330.0,110320.0,0.31086393]
[1762050988734,0.62254617,110330.0,110320.0,0.31086393]
[1762050990123,0.62254617,110330.0,110320.0,0.12957314]
[1762050990381,0.62254617,110330.0,110320.0,0.31086393]
[1762050994364,0.62254617,110330.0,110320.0,0.35905833]
[1762050995970,0.62254617,110330.0,110320.0,0.17776754]
[1762050996181,0.62254617,110330.0,110320.0,0.35905833]
[1762050996584,0.62254617,110330.0,110320.0,0.17776754]
[1762050997370,0.62276994,110330.0,110320.0,0.17776754]
[1762050998384,0.62276994,110330.0,110320.0,0.35905833]
[1762050998602,0.62276994,110330.0,110320.0,0.17776754]
[1762050999219,0.62276994,110330.0,110320.0,0.35905833]
[1762051001178,0.44149559,110330.0,110320.0,0.35905833]
[1762051001363,0.62276994,110330.0,110320.0,0.35905833]
[1762051002554,0.62276994,110330.0,110320.0,0.17776754]
[1762051003555,0.62276994,110330.0,110320.0,0.35905833]
[1762051004669,0.44149559,110330.0,110320.0,0.35905833]
[1762051004902,0.62276994,110330.0,110320.0,0.35905833]
[1762051005744,0.44149559,110330.0,110320.0,0.35905833]
[1762051007066,0.62276994,110330.0,110320.0,0.35905833]
[1762051011037,0.44149559,110330.0,110320.0,0.35905833]
[1762051011883,0.62276994,110330.0,110320.0,0.35905833]
[1762051015691,0.44149559,110330.0,110320.0,0.35905833]
[1762051021030,0.62276994,110330.0,110320.0,0.35905833]
[1762051021190,0.05025,110330.0,110320.0,0.35905833]
[1762051021406,0.62276994,110330.0,110320.0,0.35905833]
[1762051021941,0.44149559,110330.0,110320.0,0.35905833]
[1762051022070,0.62276994,110330.0,110320.0,0.35905833]
[1762051025858,0.62276994,110330.0,110320.0,0.17776754]
[1762051027145,0.62276994,110330.0,110320.0,0.12957314]
[1762051027362,1.05019781,110330.0,110320.0,0.03876724]
[1762051027797,1.05915099,110330.0,110320.0,0.03876724]
[1762051027988,1.05915099,110330.0,110320.0,0.00618764]
[1762051029168,1.05915099,110330.0,110320.0,0.00118764]
[1762051029374,1.06115099,110330.0,110320.0,0.00118764]
[1762051029607,1.06315099,110330.0,110320.0,0.00118764]
[1762051029796,1.06115099,110330.0,110320.0,0.00118764]
[1762051030206,1.06315099,110330.0,110320.0,0.00118764]
[1762051033298,0.28065981,110330.0,110320.0,0.00118764]
[1762051033508,1.06315099,110330.0,110320.0,0.00118764]
[1762051059500,0.67203529,110330.0,110320.0,0.00118764]
[1762051062657,0.67303529,110330.0,110320.0,0.00118764]
[1762051062824,0.67203529,110330.0,110320.0,0.00118764]
[1762051064330,0.67303529,110330.0,110320.0,0.00118764]
[1762051064558,0.67203529,110330.0,110320.0,0.00118764]
[1762051064997,0.67303529,110330.0,110320.0,0.00118764]
[1762051065755,0.67203529,110330.0,110320.0,0.00118764]
[1762051066016,0.67303529,110330.0,110320.0,0.00118764]
[1762051066521,1.01203529,110330.0,110320.0,0.00118764]
[1762051066936,1.03928605,110330.0,110320.0,0.00118764]
[1762051067152,1.04028605,110330.0,110320.0,0.00118764]
[1762051067365,1.03928605,110330.0,110320.0,0.00118764]
[1762051070154,1.04028605,110330.0,110320.0,0.00118764]
[1762051070598,1.03928605,110330.0,110320.0,0.00118764]
[1762051071881,1.04028605,110330.0,110320.0,0.00118764]
[1762051072116,1.03928605,110330.0,110320.0,0.00118764]
[1762051073201,1.05989582,110330.0,110320.0,0.00118764]
[1762051073429,1.05889582,110330.0,110320.0,0.00118764]
[1762051073648,1.05989582,110330.0,110320.0,0.00118764]
[1762051074315,1.05889582,110330.0,110320.0,0.00118764]
[1762051074463,1.05989582,110330.0,110320.0,0.00118764]
[1762051078146,1.05889582,110330.0,110320.0,0.00118764]
[1762051078357,1.05989582,110330.0,110320.0,0.00118764]
[1762051078562,1.05889582,110330.0,110320.0,0.00118764]
[1762051078767,1.03928605,110330.0,110320.0,0.00118764]
[1762051079212,1.43066153,110330.0,110320.0,0.00118764]
[1762051079401,1.03928605,110330.0,110320.0,0.00118764]
[1762051079827,1.04028605,110330.0,110320.0,0.00118764]
[1762051081144,1.03928605,110330.0,110320.0,0.00118764]
[1762051081575,1.04028605,110330.0,110320.0,0.00118764]
[1762051082203,1.03928605,110330.0,110320.0,0.00118764]
[1762051083124,1.45026766,110330.0,110320.0,0.00118764]
[1762051083549,1.45126766,110330.0,110320.0,0.00118764]
[1762051083970,1.05989218,110330.0,110320.0,0.00118764]
[1762051084421,1.05889218,110330.0,110320.0,0.00118764]
[1762051084629,1.45126766,110330.0,110320.0,0.00118764]
[1762051086530,1.45026766,110330.0,110320.0,0.00118764]
[1762051086746,1.45126766,110330.0,110320.0,0.00118764]
[1762051086946,1.05989218,110330.0,110320.0,0.00118764]
[1762051087589,1.45126766,110330.0,110320.0,0.00118764]
[1762051088057,1.45026766,110330.0,110320.0,0.00118764]
[1762051088462,1.45126766,110330.0,110320.0,0.00118764]
[1762051088866,1.45026766,110330.0,110320.0,0.00118764]
[1762051089085,1.45126766,110330.0,110320.0,0.00118764]
[1762051089865,1.05989218,110330.0,110320.0,0.00118764]
[1762051090157,1.04028605,110330.0,110320.0,0.00118764]
[1762051090974,1.43166153,110330.0,110320.0,0.00118764]
[1762051091560,1.40341077,110330.0,110320.0,0.00118764]
[1762051092084,1.01203529,110330.0,110320.0,0.00118764]
[1762051092395,1.01303529,110330.0,110320.0,0.00118764]
[1762051093165,1.01203529,110330.0,110320.0,0.00118764]
[1762051094369,1.01303529,110330.0,110320.0,0.00118764]
[1762051095334,1.01203529,110330.0,110320.0,0.00118764]
[1762051097269,1.01303529,110330.0,110320.0,0.00118764]
[1762051097471,1.01203529,110330.0,110320.0,0.00118764]
[1762051099057,1.01303529,110330.0,110320.0,0.00118764]
[1762051100574,1.49421667,110330.0,110320.0,0.00118764]
[1762051101596,1.49321667,110330.0,110320.0,0.00118764]
[1762051101800,1.49821667,110330.0,110320.0,0.00118764]
[1762051102018,1.49621667,110330.0,110320.0,0.00118764]
[1762051102568,1.49921667,110330.0,110320.0,0.00118764]
[1762051103153,1.49821667,110330.0,110320.0,0.00118764]
[1762051103353,1.49921667,110330.0,110320.0,0.00118764]
[1762051103699,1.49821667,110330.0,110320.0,0.00118764]
[1762051103901,1.49921667,110330.0,110320.0,0.00118764]
[1762051104102,1.49821667,110330.0,110320.0,0.00118764]
[1762051104351,1.49921667,110330.0,110320.0,0.00118764]
[1762051104765,1.49821667,110330.0,110320.0,0.00118764]
[1762051105819,1.49921667,110330.0,110320.0,0.00118764]
[1762051106280,1.49821667,110330.0,110320.0,0.00118764]
[1762051106998,1.10684119,110330.0,110320.0,0.00118764]
[1762051107205,1.49821667,110330.0,110320.0,0.00118764]
[1762051109682,1.49921667,110330.0,110320.0,0.00118764]
[1762051110116,1.49821667,110330.0,110320.0,0.00118764]
[1762051110322,1.49921667,110330.0,110320.0,0.00118764]
[1762051112426,0.71546571,110330.0,110320.0,0.00118764]
[1762051112770,1.49821667,110330.0,110320.0,0.00118764]
[1762051116411,1.49921667,110330.0,110320.0,0.00118764]
[1762051116628,1.49821667,110330.0,110320.0,0.00118764]
[1762051117312,1.49921667,110330.0,110320.0,0.00118764]
[1762051119192,1.49821667,110330.0,110320.0,0.00118764]
[1762051119399,1.89083677,110330.0,110320.0,0.00118764]
[1762051119867,1.88983677,110330.0,110320.0,0.00118764]
[1762051120531,1.89083677,110330.0,110320.0,0.00118764]
[1762051120955,1.88983677,110330.0,110320.0,0.00118764]
[1762051121362,1.89083677,110330.0,110320.0,0.00118764]
[1762051122147,1.88983677,110330.0,110320.0,0.00118764]
[1762051122751,1.89083677,110330.0,110320.0,0.00118764]
[1762051123062,1.88983677,110330.0,110320.0,0.00118764]
[1762051123478,1.89083677,110330.0,110320.0,0.00118764]
[1762051123640,1.88983677,110330.0,110320.0,0.00118764]
[1762051123837,1.89083677,110330.0,110320.0,0.00118764]
[1762051125988,1.88983677,110330.0,110320.0,0.00118764]
[1762051126933,1.89083677,110330.0,110320.0,0.00118764]
[1762051127396,1.88983677,110330.0,110320.0,0.00118764]
[1762051127600,1.89083677,110330.0,110320.0,0.00118764]
[1762051130265,1.91045663,110330.0,110320.0,0.00118764]
[1762051130475,1.93141983,110330.0,110320.0,0.00118764]
[1762051133039,1.93041983,110330.0,110320.0,0.00118764]
[1762051133413,1.93141983,110330.0,110320.0,0.00118764]
[1762051134755,1.95867059,110330.0,110320.0,0.00118764]
[1762051136139,1.95767059,110330.0,110320.0,0.00118764]
[1762051136560,1.95867059,110330.0,110320.0,0.00118764]
[1762051136975,1.95767059,110330.0,110320.0,0.00118764]
[1762051137473,1.95867059,110330.0,110320.0,0.00118764]
[1762051138250,1.95767059,110330.0,110320.0,0.00118764]
[1762051138501,1.95867059,110330.0,110320.0,0.00118764]
[1762051138923,1.95767059,110330.0,110320.0,0.00118764]
[1762051140856,1.95867059,110330.0,110320.0,0.00118764]
[1762051141075,1.95866517,110330.0,110320.0,0.00118764]
[1762051142076,1.93041441,110330.0,110320.0,0.00118764]
[1762051142698,1.93141441,110330.0,110320.0,0.00118764]
[1762051143103,1.93041441,110330.0,110320.0,0.00118764]
[1762051143307,1.93141441,110330.0,110320.0,0.00118764]
[1762051143898,1.93041441,110330.0,110320.0,0.00118764]
[1762051145463,1.90945663,110330.0,110320.0,0.00118764]
[1762051145688,1.9304129,110330.0,110320.0,0.00118764]
[1762051146707,1.9314129,110330.0,110320.0,0.00118764]
[1762051147522,1.9304129,110330.0,110320.0,0.00118764]
[1762051147928,1.9314129,110330.0,110320.0,0.00118764]
[1762051148080,1.9304129,110330.0,110320.0,0.00118764]
[1762051148487,1.9314129,110330.0,110320.0,0.00118764]
[1762051149106,1.9304129,110330.0,110320.0,0.00118764]
[1762051149310,1.9576652,110330.0,110320.0,0.00118764]
[1762051149509,1.9586652,110330.0,110320.0,0.00118764]
[1762051150506,1.9576652,110330.0,110320.0,0.00118764]
[1762051151307,1.9586652,110330.0,110320.0,0.00118764]
[1762051151455,1.9314129,110330.0,110320.0,0.00118764]
[1762051151840,4.9304129,110330.0,110320.0,0.00118764]
[1762051152301,4.95766589,110330.0,110320.0,0.00118764]
[1762051152714,4.95866589,110330.0,110320.0,0.00118764]
[1762051152881,4.95766589,110330.0,110320.0,0.00118764]
[1762051153295,4.95866589,110330.0,110320.0,0.00118764]
[1762051154935,4.95766589,110330.0,110320.0,0.00118764]
[1762051155737,4.97893926,110330.0,110320.0,0.00118764]
[1762051156620,4.97593926,110330.0,110320.0,0.00118764]
[1762051157203,4.97693926,110330.0,110320.0,0.00118764]
[1762051157472,4.98493926,110330.0,110320.0,0.00118764]
[1762051157674,5.05244407,110330.0,110320.0,0.00118764]
[1762051158686,4.98493529,110330.0,110320.0,0.00118764]
[1762051160836,5.05396013,110330.0,110320.0,0.00118764]
[1762051161044,5.05296013,110330.0,110320.0,0.00118764]
[1762051161302,5.05396013,110330.0,110320.0,0.00118764]
[1762051164779,5.0792432,110330.0,110320.0,0.00118764]
[1762051170491,5.47070022,110330.0,110320.0,0.00118764]
[1762051171506,5.47068915,110330.0,110320.0,0.00118764]
[1762051174926,5.07923213,110330.0,110320.0,0.00118764]
[1762051176043,5.08823213,110330.0,110320.0,0.00118764]
[1762051176915,5.08023213,110330.0,110320.0,0.00118764]
[1762051177144,5.09523213,110330.0,110320.0,0.00118764]
[1762051177766,5.08923213,110330.0,110320.0,0.00118764]
[1762051178100,5.09523213,110330.0,110320.0,0.00118764]
[1762051179570,5.12794737,110330.0,110320.0,0.00118764]
[1762051180371,5.12794737,110330.0,110320.0,1e-08]
[1762051181020,5.13794736,110330.0,110320.0,1e-08]
[1762051181199,5.16274088,110330.0,110320.0,1e-08]
[1762051181416,4.77158528,110330.0,110320.0,1e-08]
[1762051182122,4.73887004,110330.0,110320.0,1e-08]
[1762051182650,4.74887003,110330.0,110320.0,1e-08]
[1762051183930,4.7630929,110330.0,110320.0,1e-08]
[1762051184362,4.74887003,110330.0,110320.0,1e-08]
[1762051187390,4.7630928,110330.0,110320.0,1e-08]
[1762051187603,4.74887003,110330.0,110320.0,1e-08]
[1762051192062,4.74883535,110330.0,110320.0,1e-08]
[1762051193695,4.84439535,110330.0,110320.0,1e-08]
[1762051193821,4.74883535,110330.0,110320.0,1e-08]
[1762051195505,4.76305855,110330.0,110320.0,1e-08]
[1762051199994,4.16620632,110330.0,110320.0,1e-08]
[1762051200222,4.74330046,110330.0,110320.0,1e-08]
[1762051200452,4.69643098,110330.0,110320.0,1e-08]
[1762051200677,4.72907726,110330.0,110320.0,1e-08]
[1762051200899,4.70807726,110330.0,110320.0,1e-08]
[1762051201105,5.10068499,110330.0,110320.0,1e-08]
[1762051201318,5.10568499,110330.0,110320.0,1e-08]
[1762051201525,5.13196806,110330.0,110320.0,1e-08]
[1762051203689,5.14619008,110330.0,110320.0,1e-08]
[1762051206291,5.12170607,110330.0,110320.0,1e-08]
[1762051208380,5.12171124,110330.0,110320.0,1e-08]
[1762051208589,5.09642817,110330.0,110320.0,1e-08]
[1762051211636,5.08742817,110330.0,110320.0,1e-08]
[1762051212505,5.08655517,110330.0,110320.0,1e-08]
[1762051215971,5.07655518,110330.0,110320.0,1e-08]
[1762051216188,5.08655517,110330.0,110320.0,1e-08]
[1762051216803,5.09555517,110330.0,110320.0,1e-08]
[1762051217251,5.08555518,110330.0,110320.0,1e-08]
[1762051217466,5.09555517,110330.0,110320.0,1e-08]
[1762051218312,5.09455517,110330.0,110320.0,1e-08]
[1762051219391,5.09555517,110330.0,110320.0,1e-08]
[1762051219820,5.09455517,110330.0,110320.0,1e-08]
[1762051220035,5.09555517,110330.0,110320.0,1e-08]
[1762051220838,5.08555518,110330.0,110320.0,1e-08]
[1762051221202,5.09555517,110330.0,110320.0,1e-08]
[1762051221685,5.09455517,110330.0,110320.0,1e-08]
[1762051221842,5.12083824,110330.0,110320.0,1e-08]
[1762051224604,5.17983582,110330.0,110320.0,1e-08]
[1762051224831,5.16783377,110330.0,110320.0,1e-08]
[1762051225070,5.15361175,110330.0,110320.0,1e-08]
[1762051225525,5.24917175,110330.0,110320.0,1e-08]
[1762051225728,5.19117416,110330.0,110320.0,1e-08]
[1762051226222,5.26550428,110330.0,110320.0,1e-08]
[1762051226419,5.19617416,110330.0,110320.0,1e-08]
[1762051226636,5.20717416,110330.0,110320.0,1e-08]
[1762051226838,5.27250428,110330.0,110320.0,1e-08]
[1762051227690,5.27050428,110330.0,110320.0,1e-08]
[1762051228097,5.27450428,110330.0,110320.0,1e-08]
[1762051228326,5.28872794,110330.0,110320.0,1e-08]
[1762051228957,5.53282794,110330.0,110320.0,1e-08]
[1762051233933,5.53282794,110330.0,110250.0,0.31587323]
[1762051233934,0.21757172,110260.0,110250.0,0.30845323]